Workbook

Sheet ΗΚ
A1: Παράδειγμα κατασκευής φάσματος
A2: © Δ. Κουτσογιάννης, 2003-2017
A4: Συναρτήσεις VBA που χρησιμοποιούνται (υπάρχουν στο module Spectra2 στο παρόν λογιστικό φύλλο)
B5: autocovartypical (στήλη C): υπολογίζει την αυτοσυνδιασπορά cη για την επιθυμητή τιμη της υστέρησης η
B6: fft (στήλες F & G, range function): υπολογίζει τον Fast Fourier Transform των δεδομένων (το πλήθος τους πρέπει να είναι 2ν)
B7: fftperiodogram (στήλες I & J, range function): Υπολογίζει το περιοδόγραμμα των δεδομένων (το πλήθος τους πρέπει να είναι 2ν)
B8: fftpowspec (στήλες K & L καθώς και Μ & Ν, range function): Υπολογίζει το φάσμα ισχύος από τη διασπορά και 2ν συνδιασπορές (συνολικά 2ν + 1 αριθμούς)
B9: Σημείωση: Αν στην κλήση των συναρτήσεων το πλήθος των αριθμών δεν είναι 2ν, τότε αντί της fft χρησιμοποιείται (αυτόματα) η συνάρτηση dft που είναι πολύ πιο αργή.
A13: Παράμετροι μοντέλου HK
A14: Θεωρητική μέση τιμή | F14: 100
A15: Θεωρητική τυπική απόκλιση | F15: 20
A16: Θεωρητική διασπορά | F16: =F15^2 -> 400
A17: Συντελεστής Hurst | F17: 0.8
A18: Μέγεθος δείγματος | F18: =COUNT(A29:A540) -> 512
A21: Χαρακτηριστικά δείγματος | G21: Χαρακτηριστικά περιοδογράμματος
A22: Μέση τιμή | B22: =AVERAGE(B29:B540) -> 98.25855134 | C22: =B22^2 -> 9654.742911 | G22: Σpk2 / n | H22: =(1/F18)*SUM(J30:J285) -> 413.3346563 | K22: Άθροισμα | L22: =SUM(L29:L541) -> 423254.684 | M22: Άθροισμα | N22: =SUM(N29:N541) -> 436772.9593
A23: Διασπορά | B23: =VARP(B29:B540) -> 413.3346483 | G23: pn/22 / 2n | H23: =J285/2/F18 -> 7.921802265e-06 | K23: Εμβαδό | L23: =(L22-(1/2)*(L29+L541))*(K30-K29) -> 413.3346483 | M23: Εμβαδό | N23: =(N22-(1/2)*(N29+N541))*(M30-M29) -> 400
A24: Τυπ.απόκ. | B24: =B23^0.5 -> 20.33063325 | G24: Διαφορά | H24: =H22-H23 -> 413.3346483
B27: Δεδομένα (από μοντέλο ΗΚ) | C27: Εμπειρική αυτοσυσχέ-τιση | D27: Θεωρητική αυτοσυσχέ-τιση | E27: Διακριτός μετασχηματισμός Fourier (με FFT) | I27: Περιοδόγραμμα από δεδομένα | K27: Περιοδόγραμμα από αυτοσυνδιασπορές | M27: Θεωρητικό φάσμα ισχύος
A28: τ,η | B28: xτ | C28: ^cη | D28: cη | E28: fk = k/n | F28: vk | G28: wk | H28: pk2 | I28: fk | J28: pk2 | K28: fk | L28: s(fk) | M28: fk | N28: s(fk)
A29: 0 | B29: 75.62445654 | C29: =[1]!autocovartypical($B$29:$B$540,A29) -> 413.3346483 | D29: =$F$16 -> 400 | E29: =A29/$F$18 -> 0 | F29: =[1]!fft(B29:B540) -> 98.25855134 | G29: 0 | H29: =(F29^2+G29^2)*$F$18*2 -> 9886456.74 | I29: =[1]!fftperiodogram(B29:B540) -> 0 | J29: 9886456.74 | K29: =fftpowspec(C29:C541) -> 0 | L29: 5.443283158e-09 | M29: =[1]!fftpowspec(D29:D541) -> 0 | N29: 54047.03578
A30: =A29+1 -> 1 | B30: 97.94618135 | C30: =[1]!autocovartypical($B$29:$B$540,A30) -> 331.8566389 | D30: =(((A30-1)^(2*$F$17)+(A30+1)^(2*$F$17))/2-(A30)^(2*$F$17))*$F$16 -> 206.2866266 | E30: 0.001953125 | F30: 4.724486369 | G30: 1.869176366 | H30: =(F30^2+G30^2)*$F$18*2 -> 26434.14194 | I30: 0.001953125 | J30: 26434.14194 | K30: 0.0009765625 | L30: 6834.270058 | M30: 0.0009765625 | N30: 15363.08071
A31: 2 | B31: 94.83534301 | C31: =[1]!autocovartypical($B$29:$B$540,A31) -> 268.3571724 | D31: =(((A31-1)^(2*$F$17)+(A31+1)^(2*$F$17))/2-(A31)^(2*$F$17))*$F$16 -> 147.3359738 | E31: 0.00390625 | F31: -2.110001937 | G31: 0.1473788152 | H31: 4581.200579 | I31: 0.00390625 | J31: 4581.200579 | K31: 0.001953125 | L31: 26434.14194 | M31: 0.001953125 | N31: 9115.814217
A32: 3 | B32: 85.69873627 | C32: =[1]!autocovartypical($B$29:$B$540,A32) -> 209.0469614 | D32: 124.3855407 | E32: 0.005859375 | F32: -2.39603192 | G32: 0.553592454 | H32: 6192.571972 | I32: 0.005859375 | J32: 6192.571972 | K32: 0.0029296875 | L32: 29017.70198 | M32: 0.0029296875 | N32: 7529.060112
A33: 4 | B33: 85.28310664 | C33: =[1]!autocovartypical($B$29:$B$540,A33) -> 161.1063051 | D33: 110.6022954 | E33: 0.0078125 | F33: -2.169595089 | G33: -1.518222679 | H33: 7180.434384 | I33: 0.0078125 | J33: 7180.434384 | K33: 0.00390625 | L33: 4581.200579 | M33: 0.00390625 | N33: 6135.957733
A34: 5 | B34: 80.89554655 | C34: =[1]!autocovartypical($B$29:$B$540,A34) -> 119.0015288 | D34: 101.0490211 | E34: 0.009765625 | F34: 0.4018427907 | G34: -1.508131316 | H34: 2494.4002 | I34: 0.009765625 | J34: 2494.4002 | K34: 0.0048828125 | L34: 3227.471969 | M34: 0.0048828125 | N34: 5489.253396
A35: 6 | B35: 65.93873721 | C35: =[1]!autocovartypical($B$29:$B$540,A35) -> 99.17705015 | D35: 93.88747021 | E35: 0.01171875 | F35: -0.6544692119 | G35: 3.251131042 | H35: 11262.13939 | I35: 0.01171875 | J35: 11262.13939 | K35: 0.005859375 | L35: 6192.571972 | M35: 0.005859375 | N35: 4837.586693
A36: 7 | B36: 83.8733017 | C36: =[1]!autocovartypical($B$29:$B$540,A36) -> 91.30870379 | D36: 88.24248779 | E36: 0.013671875 | F36: -3.709626351 | G36: 0.8818110269 | H36: 14887.85239 | I36: 0.013671875 | J36: 14887.85239 | K36: 0.0068359375 | L36: 1088.353058 | M36: 0.0068359375 | N36: 4469.680587
A37: 8 | B37: 102.2497356 | C37: =[1]!autocovartypical($B$29:$B$540,A37) -> 86.85805394 | D37: 83.63405334 | E37: 0.015625 | F37: -0.4405543521 | G37: -0.1572468894 | H37: 224.0662747 | I37: 0.015625 | J37: 224.0662747 | K37: 0.0078125 | L37: 7180.434384 | M37: 0.0078125 | N37: 4080.336093
A38: 9 | B38: 79.72010535 | C38: =[1]!autocovartypical($B$29:$B$540,A38) -> 83.83150121 | D38: 79.77286832 | E38: 0.017578125 | F38: 1.944462731 | G38: -2.232605218 | H38: 8975.832444 | I38: 0.017578125 | J38: 8975.832444 | K38: 0.0087890625 | L38: 3380.999284 | M38: 0.0087890625 | N38: 3836.942087
A39: 10 | B39: 73.00498847 | C39: =[1]!autocovartypical($B$29:$B$540,A39) -> 76.91985334 | D39: 76.47234459 | E39: 0.01953125 | F39: 0.1283006266 | G39: 0.8667179299 | H39: 786.0848853 | I39: 0.01953125 | J39: 786.0848853 | K39: 0.009765625 | L39: 2494.4002 | M39: 0.009765625 | N39: 3573.416746
A40: 11 | B40: 66.79775362 | C40: =[1]!autocovartypical($B$29:$B$540,A40) -> 66.32811954 | D40: 73.6057931 | E40: 0.021484375 | F40: 0.6020306898 | G40: 0.596092966 | H40: 734.9942022 | I40: 0.021484375 | J40: 734.9942022 | K40: 0.0107421875 | L40: 13932.64112 | M40: 0.0107421875 | N40: 3397.801815
A41: 12 | B41: 77.15539588 | C41: =[1]!autocovartypical($B$29:$B$540,A41) -> 59.89696289 | D41: 71.08364964 | E41: 0.0234375 | F41: -0.1232926765 | G41: -0.1295103089 | H41: 32.74138028 | I41: 0.0234375 | J41: 32.74138028 | K41: 0.01171875 | L41: 11262.13939 | M41: 0.01171875 | N41: 3205.354388
A42: 13 | B42: 73.42459839 | C42: =[1]!autocovartypical($B$29:$B$540,A42) -> 55.19897765 | D42: 68.84049559 | E42: 0.025390625 | F42: -0.4940064781 | G42: 1.881586026 | H42: 3875.234176 | I42: 0.025390625 | J42: 3875.234176 | K42: 0.0126953125 | L42: 2695.805446 | M42: 0.0126953125 | N42: 3071.278413
A43: 14 | B43: 70.17923943 | C43: =[1]!autocovartypical($B$29:$B$540,A43) -> 59.13942439 | D43: 66.82724376 | E43: 0.02734375 | F43: 0.2967349882 | G43: 0.06811766353 | H43: 94.91626937 | I43: 0.02734375 | J43: 94.91626937 | K43: 0.013671875 | L43: 14887.85239 | M43: 0.013671875 | N43: 2923.351544
A44: 15 | B44: 83.39696738 | C44: =[1]!autocovartypical($B$29:$B$540,A44) -> 57.8693799 | D44: 65.00621812 | E44: 0.029296875 | F44: 1.825940466 | G44: 0.8117170106 | H44: 4088.773726 | I44: 0.029296875 | J44: 4088.773726 | K44: 0.0146484375 | L44: 10371.79731 | M44: 0.0146484375 | N44: 2816.835504
A45: 16 | B45: 82.52522921 | C45: =[1]!autocovartypical($B$29:$B$540,A45) -> 70.87841492 | D45: 63.3479377 | E45: 0.03125 | F45: -0.2091867869 | G45: -0.01057841866 | H45: 44.92391911 | I45: 0.03125 | J45: 44.92391911 | K45: 0.015625 | L45: 224.0662747 | M45: 0.015625 | N45: 2698.856663
A46: 17 | B46: 77.90119585 | C46: =[1]!autocovartypical($B$29:$B$540,A46) -> 72.20987265 | D46: 61.82894682 | E46: 0.033203125 | F46: -0.06979271633 | G46: 1.59447525 | H46: 2608.355682 | I46: 0.033203125 | J46: 2608.355682 | K46: 0.0166015625 | L46: 8950.073911 | M46: 0.0166015625 | N46: 2611.698159
A47: 18 | B47: 100.4573233 | C47: =[1]!autocovartypical($B$29:$B$540,A47) -> 72.2159495 | D47: 60.43031074 | E47: 0.03515625 | F47: -0.601697076 | G47: -0.2226747582 | H47: 421.5023813 | I47: 0.03515625 | J47: 421.5023813 | K47: 0.017578125 | L47: 8975.832444 | M47: 0.017578125 | N47: 2514.947092
A48: 19 | B48: 98.23517437 | C48: =[1]!autocovartypical($B$29:$B$540,A48) -> 64.76935152 | D48: 59.13654784 | E48: 0.037109375 | F48: 2.959487963 | G48: -0.05601598072 | H48: 8971.987755 | I48: 0.037109375 | J48: 8971.987755 | K48: 0.0185546875 | L48: 5741.76265 | M48: 0.0185546875 | N48: 2441.981843
A49: 20 | B49: 104.164182 | C49: =[1]!autocovartypical($B$29:$B$540,A49) -> 55.55253568 | D49: 57.93485571 | E49: 0.0390625 | F49: -0.4721149676 | G49: 2.999841381 | H49: 9443.267435 | I49: 0.0390625 | J49: 9443.267435 | K49: 0.01953125 | L49: 786.0848853 | M49: 0.01953125 | N49: 2360.892594
A50: 21 | B50: 115.6145262 | C50: =[1]!autocovartypical($B$29:$B$540,A50) -> 52.84268294 | D50: 56.81453988 | E50: 0.041015625 | F50: 0.3213646526 | G50: 0.6014479271 | H50: 476.1752054 | I50: 0.041015625 | J50: 476.1752054 | K50: 0.0205078125 | L50: 835.5208716 | M50: 0.0205078125 | N50: 2298.689446
A51: 22 | B51: 111.7503962 | C51: =[1]!autocovartypical($B$29:$B$540,A51) -> 56.79224721 | D51: 55.76658523 | E51: 0.04296875 | F51: 1.800351565 | G51: 1.890821506 | H51: 6980.067047 | I51: 0.04296875 | J51: 6980.067047 | K51: 0.021484375 | L51: 734.9942022 | M51: 0.021484375 | N51: 2229.527386
A52: 23 | B52: 122.0355041 | C52: =[1]!autocovartypical($B$29:$B$540,A52) -> 59.92664727 | D52: 54.78332963 | E52: 0.044921875 | F52: -1.072744237 | G52: -1.084854877 | H52: 2383.554869 | I52: 0.044921875 | J52: 2383.554869 | K52: 0.0224609375 | L52: 121.4499027 | M52: 0.0224609375 | N52: 2175.707802
A53: 24 | B53: 118.1754055 | C53: =[1]!autocovartypical($B$29:$B$540,A53) -> 65.93970165 | D53: 53.8582122 | E53: 0.046875 | F53: -0.6351526216 | G53: -1.425205204 | H53: 2493.059815 | I53: 0.046875 | J53: 2493.059815 | K53: 0.0234375 | L53: 32.74138028 | M53: 0.0234375 | N53: 2115.865143
A54: 25 | B54: 106.3293947 | C54: =[1]!autocovartypical($B$29:$B$540,A54) -> 66.79859509 | D54: 52.98557668 | E54: 0.048828125 | F54: -0.867531994 | G54: 1.39807523 | H54: 2772.199537 | I54: 0.048828125 | J54: 2772.199537 | K54: 0.0244140625 | L54: 2686.584771 | M54: 0.0244140625 | N54: 2068.722586
A55: 26 | B55: 90.8851321 | C55: =[1]!autocovartypical($B$29:$B$540,A55) -> 70.36354635 | D55: 52.16051629 | E55: 0.05078125 | F55: -0.6118844002 | G55: 0.5899787497 | H55: 739.816903 | I55: 0.05078125 | J55: 739.816903 | K55: 0.025390625 | L55: 3875.234176 | M55: 0.025390625 | N55: 2016.318079
A56: 27 | B56: 109.7874007 | C56: =[1]!autocovartypical($B$29:$B$540,A56) -> 59.90939981 | D56: 51.37874996 | E56: 0.052734375 | F56: 0.1484610359 | G56: -0.1598884395 | H56: 48.74751209 | I56: 0.052734375 | J56: 48.74751209 | K56: 0.0263671875 | L56: 1567.906105 | M56: 0.0263671875 | N56: 1974.592831
A57: 28 | B57: 116.6870052 | C57: =[1]!autocovartypical($B$29:$B$540,A57) -> 49.89729228 | D57: 50.63652281 | E57: 0.0546875 | F57: 1.229946856 | G57: -0.03929657715 | H57: 1550.657013 | I57: 0.0546875 | J57: 1550.657013 | K57: 0.02734375 | L57: 94.91626937 | M57: 0.02734375 | N57: 1928.232031
A58: 29 | B58: 99.57813464 | C58: =[1]!autocovartypical($B$29:$B$540,A58) -> 27.73723191 | D58: 49.93052534 | E58: 0.056640625 | F58: -1.628812533 | G58: -0.69564153 | H58: 3212.234143 | I58: 0.056640625 | J58: 3212.234143 | K58: 0.0283203125 | L58: 1862.290703 | M58: 0.0283203125 | N58: 1890.971696
A59: 30 | B59: 95.3118138 | C59: =[1]!autocovartypical($B$29:$B$540,A59) -> 13.20051729 | D59: 49.25782733 | E59: 0.05859375 | F59: -0.4023937631 | G59: -0.6277393018 | H59: 569.3208286 | I59: 0.05859375 | J59: 569.3208286 | K59: 0.029296875 | L59: 4088.773726 | M59: 0.029296875 | N59: 1849.596995
A60: 31 | B60: 103.325422 | C60: =[1]!autocovartypical($B$29:$B$540,A60) -> -2.691565064 | D60: 48.61582345 | E60: 0.060546875 | F60: 1.268886496 | G60: -1.332637974 | H60: 3467.260837 | I60: 0.060546875 | J60: 3467.260837 | K60: 0.0302734375 | L60: 1178.862107 | M60: 0.0302734375 | N60: 1816.06668
A61: 32 | B61: 114.7263535 | C61: =[1]!autocovartypical($B$29:$B$540,A61) -> -4.640741873 | D61: 48.00218808 | E61: 0.0625 | F61: -0.5084617617 | G61: -0.2728245143 | H61: 340.9577766 | I61: 0.0625 | J61: 340.9577766 | K61: 0.03125 | L61: 44.92391911 | M61: 0.03125 | N61: 1778.860013
A62: 33 | B62: 96.07960446 | C62: =[1]!autocovartypical($B$29:$B$540,A62) -> -13.42920652 | D62: 47.41483764 | E62: 0.064453125 | F62: -1.373182772 | G62: 1.171552816 | H62: 3336.362933 | I62: 0.064453125 | J62: 3336.362933 | K62: 0.0322265625 | L62: 1041.813488 | M62: 0.0322265625 | N62: 1748.482587
A63: 34 | B63: 104.4071522 | C63: =[1]!autocovartypical($B$29:$B$540,A63) -> -19.41933564 | D63: 46.85189893 | E63: 0.06640625 | F63: -0.3259424661 | G63: -1.079058444 | H63: 1301.100152 | I63: 0.06640625 | J63: 1301.100152 | K63: 0.033203125 | L63: 2608.355682 | M63: 0.033203125 | N63: 1714.800294
A64: 35 | B64: 107.4859077 | C64: =[1]!autocovartypical($B$29:$B$540,A64) -> -21.99724053 | D64: 46.31168247 | E64: 0.068359375 | F64: -0.3460187187 | G64: 1.674810587 | H64: 2994.912722 | I64: 0.068359375 | J64: 2994.912722 | K64: 0.0341796875 | L64: 816.5053502 | M64: 0.0341796875 | N64: 1687.115502
A65: 36 | B65: 109.7704986 | C65: =[1]!autocovartypical($B$29:$B$540,A65) -> -22.24124282 | D65: 45.79265979 | E65: 0.0703125 | F65: 0.9903545887 | G65: -1.644024588 | H65: 3772.025914 | I65: 0.0703125 | J65: 3772.025914 | K65: 0.03515625 | L65: 421.5023813 | M65: 0.03515625 | N65: 1656.443538
A66: 37 | B66: 102.3794223 | C66: =[1]!autocovartypical($B$29:$B$540,A66) -> -24.89329979 | D66: 45.29344415 | E66: 0.072265625 | F66: -0.4061833406 | G66: -0.1328365596 | H66: 187.0135888 | I66: 0.072265625 | J66: 187.0135888 | K66: 0.0361328125 | L66: 4885.607066 | M66: 0.0361328125 | N66: 1631.079343
A67: 38 | B67: 100.1945829 | C67: =[1]!autocovartypical($B$29:$B$540,A67) -> -32.97689079 | D67: 44.81277394 | E67: 0.07421875 | F67: -0.3065007349 | G67: 0.4165899459 | H67: 273.9096407 | I67: 0.07421875 | J67: 273.9096407 | K67: 0.037109375 | L67: 8971.987755 | M67: 0.037109375 | N67: 1603.001733
A68: 39 | B68: 103.6924419 | C68: =[1]!autocovartypical($B$29:$B$540,A68) -> -33.51071683 | D68: 44.34949847 | E68: 0.076171875 | F68: 0.4456203671 | G68: 0.1687363687 | H68: 232.4986611 | I68: 0.076171875 | J68: 232.4986611 | K68: 0.0380859375 | L68: 7890.553925 | M68: 0.0380859375 | N68: 1579.653782
A69: 40 | B69: 125.3098793 | C69: =[1]!autocovartypical($B$29:$B$540,A69) -> -30.43332421 | D69: 43.90256566 | E69: 0.078125 | F69: 0.6303396688 | G69: 1.676685293 | H69: 3285.608109 | I69: 0.078125 | J69: 3285.608109 | K69: 0.0390625 | L69: 9443.267435 | M69: 0.0390625 | N69: 1553.829952
A70: 41 | B70: 119.8483327 | C70: =[1]!autocovartypical($B$29:$B$540,A70) -> -28.31563856 | D70: 43.47101137 | E70: 0.080078125 | F70: -0.848237943 | G70: 0.4731956393 | H70: 966.0638424 | I70: 0.080078125 | J70: 966.0638424 | K70: 0.0400390625 | L70: 2322.854448 | M70: 0.0400390625 | N70: 1532.246581
A71: 42 | B71: 108.6918603 | C71: =[1]!autocovartypical($B$29:$B$540,A71) -> -21.00799197 | D71: 43.05395013 | E71: 0.08203125 | F71: -0.3959135757 | G71: 1.672034815 | H71: 3023.306732 | I71: 0.08203125 | J71: 3023.306732 | K71: 0.041015625 | L71: 476.1752054 | M71: 0.041015625 | N71: 1508.394752
A72: 43 | B72: 98.86451606 | C72: =[1]!autocovartypical($B$29:$B$540,A72) -> -9.211912174 | D72: 42.650567 | E72: 0.083984375 | F72: -1.748714924 | G72: -0.7527019688 | H72: 3711.55368 | I72: 0.083984375 | J72: 3711.55368 | K72: 0.0419921875 | L72: 154.2361151 | M72: 0.0419921875 | N72: 1488.36586
A73: 44 | B73: 106.6796696 | C73: =[1]!autocovartypical($B$29:$B$540,A73) -> 5.239805144 | D73: 42.26011047 | E73: 0.0859375 | F73: -0.1562475564 | G73: -0.8629546151 | H73: 787.5624619 | I73: 0.0859375 | J73: 787.5624619 | K73: 0.04296875 | L73: 6980.067047 | M73: 0.04296875 | N73: 1466.250689
A74: 45 | B74: 107.256339 | C74: =[1]!autocovartypical($B$29:$B$540,A74) -> 18.11151475 | D74: 41.88188624 | E74: 0.087890625 | F74: -0.2119794584 | G74: -0.5997166914 | H74: 414.3056903 | I74: 0.087890625 | J74: 414.3056903 | K74: 0.0439453125 | L74: 13169.26992 | M74: 0.0439453125 | N74: 1447.599343
A75: 46 | B75: 107.1465312 | C75: =[1]!autocovartypical($B$29:$B$540,A75) -> 26.89992514 | D75: 41.51525169 | E75: 0.08984375 | F75: -0.05628853987 | G75: 0.2075671869 | H75: 47.3625977 | I75: 0.08984375 | J75: 47.3625977 | K75: 0.044921875 | L75: 2383.554869 | M75: 0.044921875 | N75: 1427.022587
A76: 47 | B76: 115.3667327 | C76: =[1]!autocovartypical($B$29:$B$540,A76) -> 37.71725651 | D76: 41.15961098 | E76: 0.091796875 | F76: 0.1523324755 | G76: -0.3740418446 | H76: 167.0271843 | I76: 0.091796875 | J76: 167.0271843 | K76: 0.0458984375 | L76: 969.6769426 | M76: 0.0458984375 | N76: 1409.598606
A77: 48 | B77: 105.9456797 | C77: =[1]!autocovartypical($B$29:$B$540,A77) -> 50.10493904 | D77: 40.81441078 | E77: 0.09375 | F77: -0.9856735153 | G77: 0.4197240494 | H77: 1175.26585 | I77: 0.09375 | J77: 1175.26585 | K77: 0.046875 | L77: 2493.059815 | M77: 0.046875 | N77: 1390.391971
A78: 49 | B78: 120.6700869 | C78: =[1]!autocovartypical($B$29:$B$540,A78) -> 51.68227107 | D78: 40.47913642 | E78: 0.095703125 | F78: -0.1940414111 | G78: -0.1677762515 | H78: 67.38016233 | I78: 0.095703125 | J78: 67.38016233 | K78: 0.0478515625 | L78: 2276.911765 | M78: 0.0478515625 | N78: 1374.066964
A79: 50 | B79: 125.1871531 | C79: =[1]!autocovartypical($B$29:$B$540,A79) -> 47.06534163 | D79: 40.15330842 | E79: 0.09765625 | F79: 1.050401165 | G79: -0.2705599582 | H79: 1204.782386 | I79: 0.09765625 | J79: 1204.782386 | K79: 0.048828125 | L79: 2772.199537 | M79: 0.048828125 | N79: 1356.086567
A80: 51 | B80: 122.5772894 | C80: =[1]!autocovartypical($B$29:$B$540,A80) -> 38.30004376 | D80: 39.83647948 | E80: 0.099609375 | F80: 0.3734726597 | G80: 0.1777246607 | H80: 175.1735118 | I80: 0.099609375 | J80: 175.1735118 | K80: 0.0498046875 | L80: 546.1885443 | M80: 0.0498046875 | N80: 1340.750046
A81: 52 | B81: 136.8258993 | C81: =[1]!autocovartypical($B$29:$B$540,A81) -> 29.43773552 | D81: 39.52823175 | E81: 0.1015625 | F81: 0.01583874343 | G81: -1.051431058 | H81: 1132.296332 | I81: 0.1015625 | J81: 1132.296332 | K81: 0.05078125 | L81: 739.816903 | M81: 0.05078125 | N81: 1323.87207
A82: 53 | B82: 122.823143 | C82: =[1]!autocovartypical($B$29:$B$540,A82) -> 17.42884073 | D82: 39.22817432 | E82: 0.103515625 | F82: -0.4888782999 | G82: -1.1769862 | H82: 1663.281672 | I82: 0.103515625 | J82: 1663.281672 | K82: 0.0517578125 | L82: 1581.541014 | M82: 0.0517578125 | N82: 1309.428375
A83: 54 | B83: 105.9629793 | C83: =[1]!autocovartypical($B$29:$B$540,A83) -> 17.5299734 | D83: 38.93594105 | E83: 0.10546875 | F83: 0.8783824016 | G83: -0.03574255984 | H83: 791.3811702 | I83: 0.10546875 | J83: 791.3811702 | K83: 0.052734375 | L83: 48.74751209 | M83: 0.052734375 | N83: 1293.545634
A84: 55 | B84: 106.5720779 | C84: =[1]!autocovartypical($B$29:$B$540,A84) -> 18.69319739 | D84: 38.65118855 | E84: 0.107421875 | F84: 0.3193129117 | G84: 1.486674354 | H84: 2367.653245 | I84: 0.107421875 | J84: 2367.653245 | K84: 0.0537109375 | L84: 639.2681431 | M84: 0.0537109375 | N84: 1279.911485
A85: 56 | B85: 113.8851867 | C85: =[1]!autocovartypical($B$29:$B$540,A85) -> 23.75969324 | D85: 38.37359442 | E85: 0.109375 | F85: -1.337912121 | G85: -0.5516878906 | H85: 2144.633212 | I85: 0.109375 | J85: 2144.633212 | K85: 0.0546875 | L85: 1550.657013 | M85: 0.0546875 | N85: 1264.930674
A86: 57 | B86: 115.543306 | C86: =[1]!autocovartypical($B$29:$B$540,A86) -> 28.08842421 | D86: 38.1028556 | E86: 0.111328125 | F86: -0.07638746926 | G86: -0.5924635231 | H86: 365.4124254 | I86: 0.111328125 | J86: 365.4124254 | K86: 0.0556640625 | L86: 4329.355729 | M86: 0.0556640625 | N86: 1252.033189
A87: 58 | B87: 112.139345 | C87: =[1]!autocovartypical($B$29:$B$540,A87) -> 35.60830711 | D87: 37.83868686 | E87: 0.11328125 | F87: 0.09670208756 | G87: 0.2141382643 | H87: 56.53144574 | I87: 0.11328125 | J87: 56.53144574 | K87: 0.056640625 | L87: 3212.234143 | M87: 0.056640625 | N87: 1237.872673
A88: 59 | B88: 103.588366 | C88: =[1]!autocovartypical($B$29:$B$540,A88) -> 44.17768525 | D88: 37.58081954 | E88: 0.115234375 | F88: -0.5261969759 | G88: 0.5870454693 | H88: 636.4217759 | I88: 0.115234375 | J88: 636.4217759 | K88: 0.0576171875 | L88: 564.2141957 | M88: 0.0576171875 | N88: 1225.647765
A89: 60 | B89: 126.8992443 | C89: =[1]!autocovartypical($B$29:$B$540,A89) -> 37.15498948 | D89: 37.32900024 | E89: 0.1171875 | F89: -0.3745333623 | G89: -1.378442175 | H89: 2089.347142 | I89: 0.1171875 | J89: 2089.347142 | K89: 0.05859375 | L89: 569.3208286 | M89: 0.05859375 | N89: 1212.235778
A90: 61 | B90: 100.7271884 | C90: =[1]!autocovartypical($B$29:$B$540,A90) -> 37.85395882 | D90: 37.0829898 | E90: 0.119140625 | F90: 1.722501312 | G90: -0.2046273282 | H90: 3081.096308 | I90: 0.119140625 | J90: 3081.096308 | K90: 0.0595703125 | L90: 1147.134961 | M90: 0.0595703125 | N90: 1200.626845
A91: 62 | B91: 101.4298977 | C91: =[1]!autocovartypical($B$29:$B$540,A91) -> 35.90985163 | D91: 36.84256222 | E91: 0.12109375 | F91: -0.2497636791 | G91: -0.3562620918 | H91: 193.8478833 | I91: 0.12109375 | J91: 193.8478833 | K91: 0.060546875 | L91: 3467.260837 | M91: 0.060546875 | N91: 1187.900016
A92: 63 | B92: 98.18062071 | C92: =[1]!autocovartypical($B$29:$B$540,A92) -> 27.37948422 | D92: 36.60750375 | E92: 0.123046875 | F92: -0.6416614938 | G92: 0.06592156301 | H92: 426.0609281 | I92: 0.123046875 | J92: 426.0609281 | K92: 0.0615234375 | L92: 2543.813416 | M92: 0.0615234375 | N92: 1176.856857
A93: 64 | B93: 116.8227301 | C93: =[1]!autocovartypical($B$29:$B$540,A93) -> 19.38176865 | D93: 36.37761208 | E93: =A93/$F$18 -> 0.125 | F93: 0.06190009052 | G93: -0.245390364 | H93: 65.58520521 | I93: 0.125 | J93: 65.58520521 | K93: 0.0625 | L93: 340.9577766 | M93: 0.0625 | N93: 1164.759
A94: =A93+1 -> 65 | B94: 96.64841715 | C94: =[1]!autocovartypical($B$29:$B$540,A94) -> 20.67178749 | D94: 36.1526955 | E94: 0.126953125 | F94: 1.129739022 | G94: -0.2040726636 | H94: =(F94^2+G94^2)*$F$18*2 -> 1349.586853 | I94: 0.126953125 | J94: 1349.586853 | K94: 0.0634765625 | L94: 1856.210329 | M94: 0.0634765625 | N94: 1154.236915
A95: 66 | B95: 83.62066001 | C95: =[1]!autocovartypical($B$29:$B$540,A95) -> 35.0256937 | D95: =(((A95-1)^(2*$F$17)+(A95+1)^(2*$F$17))/2-(A95)^(2*$F$17))*$F$16 -> 35.93257225 | E95: 0.12890625 | F95: 0.02303505541 | G95: -0.6364641656 | H95: 415.3520619 | I95: 0.12890625 | J95: 415.3520619 | K95: 0.064453125 | L95: 3336.362933 | M95: 0.064453125 | N95: 1142.71802
A96: 67 | B96: 97.26012333 | C96: =[1]!autocovartypical($B$29:$B$540,A96) -> 40.43867335 | D96: 35.71706982 | E96: 0.130859375 | F96: 0.5822587401 | G96: 0.1914365518 | H96: 384.6893504 | I96: 0.130859375 | J96: 384.6893504 | K96: 0.0654296875 | L96: 1500.325714 | M96: 0.0654296875 | N96: 1132.677069
A97: 68 | B97: 120.5828962 | C97: =[1]!autocovartypical($B$29:$B$540,A97) -> 39.34294458 | D97: 35.50602437 | E97: 0.1328125 | F97: -0.05047217004 | G97: 0.5929988867 | H97: 362.6958024 | I97: 0.1328125 | J97: 362.6958024 | K97: 0.06640625 | L97: 1301.100152 | M97: 0.06640625 | N97: 1121.692461
A98: 69 | B98: 127.9421369 | C98: =[1]!autocovartypical($B$29:$B$540,A98) -> 40.29116275 | D98: 35.29928019 | E98: 0.134765625 | F98: -0.1783007219 | G98: -0.3824047502 | H98: 182.2971294 | I98: 0.134765625 | J98: 182.2971294 | K98: 0.0673828125 | L98: 2134.251233 | M98: 0.0673828125 | N98: 1112.096828
A99: 70 | B99: 149.0177727 | C99: =[1]!autocovartypical($B$29:$B$540,A99) -> 51.02187109 | D99: 35.09668914 | E99: 0.13671875 | F99: 0.5489847582 | G99: -0.7855147705 | H99: 940.4597447 | I99: 0.13671875 | J99: 940.4597447 | K99: 0.068359375 | L99: 2994.912722 | M99: 0.068359375 | N99: 1101.606464
A100: 71 | B100: 126.7429461 | C100: =[1]!autocovartypical($B$29:$B$540,A100) -> 58.30865334 | D100: 34.89811021 | E100: 0.138671875 | F100: -0.2984699691 | G100: 0.1586832768 | H100: 117.0070577 | I100: 0.138671875 | J100: 117.0070577 | K100: 0.0693359375 | L100: 4301.134091 | M100: 0.0693359375 | N100: 1092.423933
A101: 72 | B101: 134.8859913 | C101: =[1]!autocovartypical($B$29:$B$540,A101) -> 62.56140745 | D101: 34.70340909 | E101: 0.140625 | F101: 0.4157336732 | G101: 0.4004995673 | H101: 341.2320158 | I101: 0.140625 | J101: 341.2320158 | K101: 0.0703125 | L101: 3772.025914 | M101: 0.0703125 | N101: 1082.391805
A102: 73 | B102: 114.7944595 | C102: =[1]!autocovartypical($B$29:$B$540,A102) -> 70.65198484 | D102: 34.51245775 | E102: 0.142578125 | F102: 0.5696100444 | G102: -0.01942540694 | H102: 332.6289398 | I102: 0.142578125 | J102: 332.6289398 | K102: 0.0712890625 | L102: 1459.34953 | M102: 0.0712890625 | N102: 1073.593307
A103: 74 | B103: 128.8503877 | C103: =[1]!autocovartypical($B$29:$B$540,A103) -> 69.04987131 | D103: 34.32513406 | E103: 0.14453125 | F103: -0.1072616769 | G103: -0.319487939 | H103: 116.3034731 | I103: 0.14453125 | J103: 116.3034731 | K103: 0.072265625 | L103: 187.0135888 | M103: 0.072265625 | N103: 1063.986939
A104: 75 | B104: 107.3625719 | C104: =[1]!autocovartypical($B$29:$B$540,A104) -> 68.84437913 | D104: 34.14132145 | E104: 0.146484375 | F104: 0.2881082099 | G104: -0.7160118629 | H104: 609.9756323 | I104: 0.146484375 | J104: 609.9756323 | K104: 0.0732421875 | L104: 645.131467 | M104: 0.0732421875 | N104: 1055.546172
A105: 76 | B105: 105.3407898 | C105: =[1]!autocovartypical($B$29:$B$540,A105) -> 56.34824812 | D105: 33.96090859 | E105: 0.1484375 | F105: 0.419670418 | G105: 0.1124703403 | H105: 193.3033853 | I105: 0.1484375 | J105: 193.3033853 | K105: 0.07421875 | L105: 273.9096407 | M105: 0.07421875 | N105: 1046.336189
A106: 77 | B106: 102.3641883 | C106: =[1]!autocovartypical($B$29:$B$540,A106) -> 37.09535929 | D106: 33.78378908 | E106: 0.150390625 | F106: -0.6832194636 | G106: -0.02905625735 | H106: 478.856296 | I106: 0.150390625 | J106: 478.856296 | K106: 0.0751953125 | L106: 350.6960585 | M106: 0.0751953125 | N106: 1038.229289
A107: 78 | B107: 92.59354562 | C107: =[1]!autocovartypical($B$29:$B$540,A107) -> 18.52623201 | D107: 33.6098612 | E107: 0.15234375 | F107: 0.1527557149 | G107: 0.02991443534 | H107: 24.81068225 | I107: 0.15234375 | J107: 24.81068225 | K107: 0.076171875 | L107: 232.4986611 | M107: 0.076171875 | N107: 1029.389049
A108: 79 | B108: 84.32812283 | C108: =[1]!autocovartypical($B$29:$B$540,A108) -> 13.59440464 | D108: 33.4390276 | E108: 0.154296875 | F108: 0.3425548071 | G108: -0.01581375366 | H108: 120.4161236 | I108: 0.154296875 | J108: 120.4161236 | K108: 0.0771484375 | L108: 1126.6724 | M108: 0.0771484375 | N108: 1021.59431
A109: 80 | B109: 78.55281484 | C109: =[1]!autocovartypical($B$29:$B$540,A109) -> 11.57616984 | D109: 33.27119508 | E109: 0.15625 | F109: 0.5632460396 | G109: -0.1951035611 | H109: 363.8389767 | I109: 0.15625 | J109: 363.8389767 | K109: 0.078125 | L109: 3285.608109 | M109: 0.078125 | N109: 1013.099589
A110: 81 | B110: 74.35185422 | C110: =[1]!autocovartypical($B$29:$B$540,A110) -> 16.47586721 | D110: 33.10627439 | E110: 0.158203125 | F110: -0.1469148489 | G110: -0.1672252486 | H110: 50.73741475 | I110: 0.158203125 | J110: 50.73741475 | K110: 0.0791015625 | L110: 2078.577647 | M110: 0.0791015625 | N110: 1005.597217
A111: 82 | B111: 79.33656319 | C111: =[1]!autocovartypical($B$29:$B$540,A111) -> 24.26913725 | D111: 32.94417999 | E111: 0.16015625 | F111: -0.5331736066 | G111: -0.3697332733 | H111: 431.0802311 | I111: 0.16015625 | J111: 431.0802311 | K111: 0.080078125 | L111: 966.0638424 | M111: 0.080078125 | N111: 997.4259364
A112: 83 | B112: 80.29307666 | C112: =[1]!autocovartypical($B$29:$B$540,A112) -> 35.74398568 | D112: 32.78482983 | E112: 0.162109375 | F112: -0.1396589736 | G112: -0.3355364639 | H112: 135.2594918 | I112: 0.162109375 | J112: 135.2594918 | K112: 0.0810546875 | L112: 37.19383701 | M112: 0.0810546875 | N112: 990.1978433
A113: 84 | B113: 89.51448146 | C113: =[1]!autocovartypical($B$29:$B$540,A113) -> 42.84078237 | D113: 32.62814523 | E113: 0.1640625 | F113: 0.5465425499 | G113: 0.4125216999 | H113: 480.1361017 | I113: 0.1640625 | J113: 480.1361017 | K113: 0.08203125 | L113: 3023.306732 | M113: 0.08203125 | N113: 982.3298316
A114: 85 | B114: 94.52363642 | C114: =[1]!autocovartypical($B$29:$B$540,A114) -> 45.0335825 | D114: 32.47405064 | E114: 0.166015625 | F114: -0.3951255295 | G114: 0.2669359406 | H114: 232.836076 | I114: 0.166015625 | J114: 232.836076 | K114: 0.0830078125 | L114: 5540.097833 | M114: 0.0830078125 | N114: 975.359449
A115: 86 | B115: 87.46966552 | C115: =[1]!autocovartypical($B$29:$B$540,A115) -> 39.00067933 | D115: 32.32247354 | E115: 0.16796875 | F115: 0.2003041229 | G115: -0.06756254294 | H115: 45.75891338 | I115: 0.16796875 | J115: 45.75891338 | K115: 0.083984375 | L115: 3711.55368 | M115: 0.083984375 | N115: 967.7762389
A116: 87 | B116: 73.40497708 | C116: =[1]!autocovartypical($B$29:$B$540,A116) -> 23.4171972 | D116: 32.17334421 | E116: 0.169921875 | F116: 0.04703072001 | G116: 0.4216706017 | H116: 184.3384166 | I116: 0.169921875 | J116: 184.3384166 | K116: 0.0849609375 | L116: 2128.36399 | M116: 0.0849609375 | N116: 961.04836
A117: 88 | B117: 88.47718901 | C117: =[1]!autocovartypical($B$29:$B$540,A117) -> 4.416299124 | D117: 32.02659568 | E117: 0.171875 | F117: 0.1974943733 | G117: 0.1497099259 | H117: 62.89109955 | I117: 0.171875 | J117: 62.89109955 | K117: 0.0859375 | L117: 787.5624619 | M117: 0.0859375 | N117: 953.7330083
A118: 89 | B118: 97.70094953 | C118: =[1]!autocovartypical($B$29:$B$540,A118) -> -7.983635554 | D118: 31.88216351 | E118: 0.173828125 | F118: 0.5543077356 | G118: 0.3181394577 | H118: 418.273055 | I118: 0.173828125 | J118: 418.273055 | K118: 0.0869140625 | L118: 241.8333801 | M118: 0.0869140625 | N118: 947.2336482
A119: 90 | B119: 103.0960445 | C119: =[1]!autocovartypical($B$29:$B$540,A119) -> -14.5086242 | D119: 31.73998573 | E119: 0.17578125 | F119: -0.01286430249 | G119: 0.3954133566 | H119: 160.273626 | I119: 0.17578125 | J119: 160.273626 | K119: 0.087890625 | L119: 414.3056903 | M119: 0.087890625 | N119: 940.1705789
A120: 91 | B120: 112.1473847 | C120: =[1]!autocovartypical($B$29:$B$540,A120) -> -9.929610207 | D120: 31.60000267 | E120: 0.177734375 | F120: -0.2314490815 | G120: -0.3520332545 | H120: 181.7559958 | I120: 0.177734375 | J120: 181.7559958 | K120: 0.0888671875 | L120: 344.2792197 | M120: 0.0888671875 | N120: 933.8868521
A121: 92 | B121: 102.258199 | C121: =[1]!autocovartypical($B$29:$B$540,A121) -> -3.232393859 | D121: 31.46215689 | E121: 0.1796875 | F121: -0.3699455353 | G121: 0.1931397927 | H121: 178.3425829 | I121: 0.1796875 | J121: 178.3425829 | K121: 0.08984375 | L121: 47.3625977 | M121: 0.08984375 | N121: 927.0617194
A122: 93 | B122: 95.06345005 | C122: =[1]!autocovartypical($B$29:$B$540,A122) -> -2.536946501 | D122: 31.32639305 | E122: 0.181640625 | F122: -0.131846934 | G122: -0.2785364552 | H122: 97.24535896 | I122: 0.181640625 | J122: 97.24535896 | K122: 0.0908203125 | L122: 263.1987733 | M122: 0.0908203125 | N122: 920.9817316
A123: 94 | B123: 100.8710233 | C123: =[1]!autocovartypical($B$29:$B$540,A123) -> -3.637417077 | D123: 31.19265782 | E123: 0.18359375 | F123: -0.9571136527 | G123: 0.2907478345 | H123: 1024.615268 | I123: 0.18359375 | J123: 1024.615268 | K123: 0.091796875 | L123: 167.0271843 | M123: 0.091796875 | N123: 914.3812986
A124: 95 | B124: 91.14707482 | C124: =[1]!autocovartypical($B$29:$B$540,A124) -> -8.301766703 | D124: 31.06089978 | E124: 0.185546875 | F124: -0.1098294157 | G124: 0.3101816604 | H124: 110.8737669 | I124: 0.185546875 | J124: 110.8737669 | K124: 0.0927734375 | L124: 184.8837484 | M124: 0.0927734375 | N124: 908.4940519
A125: 96 | B125: 102.089158 | C125: =[1]!autocovartypical($B$29:$B$540,A125) -> -20.44487225 | D125: 30.93106935 | E125: 0.1875 | F125: -0.0967760974 | G125: -0.3109359199 | H125: 108.5918816 | I125: 0.1875 | J125: 108.5918816 | K125: 0.09375 | L125: 1175.26585 | M125: 0.09375 | N125: 902.1060838
A126: 97 | B126: 103.0089791 | C126: =[1]!autocovartypical($B$29:$B$540,A126) -> -26.71053852 | D126: 30.80311868 | E126: 0.189453125 | F126: -0.1591112285 | G126: 0.2996359951 | H126: 117.8604673 | I126: 0.189453125 | J126: 117.8604673 | K126: 0.0947265625 | L126: 1265.385872 | M126: 0.0947265625 | N126: 896.4013919
A127: 98 | B127: 104.0365969 | C127: =[1]!autocovartypical($B$29:$B$540,A127) -> -24.78061727 | D127: 30.67700158 | E127: 0.19140625 | F127: -0.438501105 | G127: -0.3601502474 | H127: 329.7192139 | I127: 0.19140625 | J127: 329.7192139 | K127: 0.095703125 | L127: 67.38016233 | M127: 0.095703125 | N127: 890.2145614
A128: 99 | B128: 86.87899097 | C128: =[1]!autocovartypical($B$29:$B$540,A128) -> -20.42094437 | D128: 30.55267348 | E128: 0.193359375 | F128: -0.1309763089 | G128: -0.240139385 | H128: 76.61743891 | I128: 0.193359375 | J128: 76.61743891 | K128: 0.0966796875 | L128: 1737.063063 | M128: 0.0966796875 | N128: 884.6829752
A129: 100 | B129: 104.129705 | C129: =[1]!autocovartypical($B$29:$B$540,A129) -> -11.32250125 | D129: 30.43009131 | E129: 0.1953125 | F129: -0.2992635475 | G129: 0.106855869 | H129: 103.400292 | I129: 0.1953125 | J129: 103.400292 | K129: 0.09765625 | L129: 1204.782386 | M129: 0.09765625 | N129: 878.6867784
A130: 101 | B130: 109.7077122 | C130: =[1]!autocovartypical($B$29:$B$540,A130) -> -0.8228109902 | D130: 30.30921344 | E130: 0.197265625 | F130: 0.4984939674 | G130: -0.01840730928 | H130: 254.8071061 | I130: 0.197265625 | J130: 254.8071061 | K130: 0.0986328125 | L130: 22.91009401 | M130: 0.0986328125 | N130: 873.3195189
A131: 102 | B131: 106.5821695 | C131: =[1]!autocovartypical($B$29:$B$540,A131) -> 8.213522036 | D131: 30.18999966 | E131: 0.19921875 | F131: -0.1450623722 | G131: 0.3900015848 | H131: 177.2997918 | I131: 0.19921875 | J131: 177.2997918 | K131: 0.099609375 | L131: 175.1735118 | M131: 0.099609375 | N131: 867.504201
A132: 103 | B132: 113.7333885 | C132: =[1]!autocovartypical($B$29:$B$540,A132) -> 11.33522117 | D132: 30.07241107 | E132: 0.201171875 | F132: -0.1648598197 | G132: 0.167748553 | H132: 56.64597729 | I132: 0.201171875 | J132: 56.64597729 | K132: 0.1005859375 | L132: 1035.651066 | M132: 0.1005859375 | N132: 862.2931002
A133: 104 | B133: 98.12058573 | C133: =[1]!autocovartypical($B$29:$B$540,A133) -> 4.121996263 | D133: 29.95641006 | E133: 0.203125 | F133: -0.2354267736 | G133: 0.09977111488 | H133: 66.94916207 | I133: 0.203125 | J133: 66.94916207 | K133: 0.1015625 | L133: 1132.296332 | M133: 0.1015625 | N133: 856.6495883
A134: 105 | B134: 75.62199314 | C134: =[1]!autocovartypical($B$29:$B$540,A134) -> -1.614323254 | D134: 29.84196024 | E134: 0.205078125 | F134: -0.2225514457 | G134: -0.2650904733 | H134: 122.6773555 | I134: 0.205078125 | J134: 122.6773555 | K134: 0.1025390625 | L134: 34.94346932 | M134: 0.1025390625 | N134: 851.5870362
A135: 106 | B135: 72.78115897 | C135: =[1]!autocovartypical($B$29:$B$540,A135) -> -0.1122284412 | D135: 29.72902638 | E135: 0.20703125 | F135: -0.3674118386 | G135: 0.1088787314 | H135: 150.3703422 | I135: 0.20703125 | J135: 150.3703422 | K135: 0.103515625 | L135: 1663.281672 | M135: 0.103515625 | N135: 846.1068802
A136: 107 | B136: 83.02679823 | C136: =[1]!autocovartypical($B$29:$B$540,A136) -> 3.920884951 | D136: 29.61757439 | E136: 0.208984375 | F136: 0.2594491667 | G136: -0.2104432517 | H136: 114.2786378 | I136: 0.208984375 | J136: 114.2786378 | K136: 0.1044921875 | L136: 1912.616252 | M136: 0.1044921875 | N136: 841.1857767
A137: 108 | B137: 91.75760746 | C137: =[1]!autocovartypical($B$29:$B$540,A137) -> 13.95134258 | D137: 29.50757123 | E137: 0.2109375 | F137: -0.08985622716 | G137: 0.5922661967 | H137: 367.4658707 | I137: 0.2109375 | J137: 367.4658707 | K137: 0.10546875 | L137: 791.3811702 | M137: 0.10546875 | N137: 835.8610959
A138: 109 | B138: 84.13632193 | C138: =[1]!autocovartypical($B$29:$B$540,A138) -> 21.52180389 | D138: 29.39898492 | E138: 0.212890625 | F138: -0.406483558 | G138: 0.295225422 | H138: 258.4442191 | I138: 0.212890625 | J138: 258.4442191 | K138: 0.1064453125 | L138: 1392.107235 | M138: 0.1064453125 | N138: 831.0748085
A139: 110 | B139: 118.9361916 | C139: =[1]!autocovartypical($B$29:$B$540,A139) -> 17.20950227 | D139: 29.29178445 | E139: 0.21484375 | F139: 0.3713864245 | G139: 0.2112248888 | H139: 186.9248819 | I139: 0.21484375 | J139: 186.9248819 | K139: 0.107421875 | L139: 2367.653245 | M139: 0.107421875 | N139: 825.8982437
A140: 111 | B140: 137.3135263 | C140: =[1]!autocovartypical($B$29:$B$540,A140) -> 16.40790893 | D140: 29.18593979 | E140: 0.216796875 | F140: 0.3527672053 | G140: -0.0403316789 | H140: 129.0970577 | I140: 0.216796875 | J140: 129.0970577 | K140: 0.1083984375 | L140: 2778.730789 | M140: 0.1083984375 | N140: 821.2405686
A141: 112 | B141: 123.7326428 | C141: =[1]!autocovartypical($B$29:$B$540,A141) -> 4.932491294 | D141: 29.08142179 | E141: 0.21875 | F141: 0.4568014931 | G141: 0.2449466304 | H141: 275.1144508 | I141: 0.21875 | J141: 275.1144508 | K141: 0.109375 | L141: 2144.633212 | M141: 0.109375 | N141: 816.2052388
A142: 113 | B142: 115.6722155 | C142: =[1]!autocovartypical($B$29:$B$540,A142) -> -2.422005306 | D142: 28.97820221 | E142: 0.220703125 | F142: 0.1674510365 | G142: 0.1448726546 | H142: 50.20460612 | I142: 0.220703125 | J142: 50.20460612 | K142: 0.1103515625 | L142: 709.8884967 | M142: 0.1103515625 | N142: 811.6703667
A143: 114 | B143: 106.8398079 | C143: =[1]!autocovartypical($B$29:$B$540,A143) -> -13.38705751 | D143: 28.87625363 | E143: 0.22265625 | F143: -0.6798768799 | G143: 0.3612766095 | H143: 606.979441 | I143: 0.22265625 | J143: 606.979441 | K143: 0.111328125 | L143: 365.4124254 | M143: 0.111328125 | N143: 806.7698309
A144: 115 | B144: 122.8775265 | C144: =[1]!autocovartypical($B$29:$B$540,A144) -> -9.879120577 | D144: 28.77554946 | E144: 0.224609375 | F144: 0.3184310453 | G144: 0.3188917811 | H144: 207.9644658 | I144: 0.224609375 | J144: 207.9644658 | K144: 0.1123046875 | L144: 370.1617924 | M144: 0.1123046875 | N144: 802.3523153
A145: 116 | B145: 125.5843674 | C145: =[1]!autocovartypical($B$29:$B$540,A145) -> -13.72263367 | D145: 28.67606388 | E145: 0.2265625 | F145: -0.560431944 | G145: -0.4767257362 | H145: 554.3438248 | I145: 0.2265625 | J145: 554.3438248 | K145: 0.11328125 | L145: 56.53144574 | M145: 0.11328125 | N145: 797.5805364
A146: 117 | B146: 109.6111006 | C146: =[1]!autocovartypical($B$29:$B$540,A146) -> -16.08555589 | D146: 28.57777184 | E146: 0.228515625 | F146: 0.005740323505 | G146: -0.1122995655 | H146: 12.94760317 | I146: 0.228515625 | J146: 12.94760317 | K146: 0.1142578125 | L146: 2.667181395 | M146: 0.1142578125 | N146: 793.2752655
A147: 118 | B147: 111.0658906 | C147: =[1]!autocovartypical($B$29:$B$540,A147) -> -17.43139671 | D147: 28.48064899 | E147: 0.23046875 | F147: -0.402648142 | G147: 0.1923360698 | H147: 203.8975386 | I147: 0.23046875 | J147: 203.8975386 | K147: 0.115234375 | L147: 636.4217759 | M147: 0.115234375 | N147: 788.6265797
A148: 119 | B148: 126.1843589 | C148: =[1]!autocovartypical($B$29:$B$540,A148) -> -19.40645701 | D148: 28.38467169 | E148: 0.232421875 | F148: -0.0934321725 | G148: 0.1054459519 | H148: 20.32478169 | I148: 0.232421875 | J148: 20.32478169 | K148: 0.1162109375 | L148: 2138.396589 | M148: 0.1162109375 | N148: 784.4287505
A149: 120 | B149: 112.7709654 | C149: =[1]!autocovartypical($B$29:$B$540,A149) -> -24.19087021 | D149: 28.28981698 | E149: 0.234375 | F149: 0.01742557051 | G149: -0.3145902295 | H149: 101.6531589 | I149: 0.234375 | J149: 101.6531589 | K149: 0.1171875 | L149: 2089.347142 | M149: 0.1171875 | N149: 779.8978378
A150: 121 | B150: 84.75364012 | C150: =[1]!autocovartypical($B$29:$B$540,A150) -> -39.05811758 | D150: 28.19606252 | E150: 0.236328125 | F150: -0.06787895625 | G150: -0.3245869094 | H150: 112.6033556 | I150: 0.236328125 | J150: 112.6033556 | K150: 0.1181640625 | L150: 2777.506349 | M150: 0.1181640625 | N150: 775.8029331
A151: 122 | B151: 84.78657475 | C151: =[1]!autocovartypical($B$29:$B$540,A151) -> -48.48663053 | D151: 28.10338662 | E151: 0.23828125 | F151: -0.481682334 | G151: -0.0331313705 | H151: 238.710332 | I151: 0.23828125 | J151: 238.710332 | K151: 0.119140625 | L151: 3081.096308 | M151: 0.119140625 | N151: 771.3847914
A152: 123 | B152: 75.28100541 | C152: =[1]!autocovartypical($B$29:$B$540,A152) -> -54.13803493 | D152: 28.01176819 | E152: 0.240234375 | F152: -0.05623880243 | G152: 0.2017249199 | H152: 44.90828412 | I152: 0.240234375 | J152: 44.90828412 | K152: 0.1201171875 | L152: 1005.497644 | M152: 0.1201171875 | N152: 767.3885582
A153: 124 | B153: 72.93535377 | C153: =[1]!autocovartypical($B$29:$B$540,A153) -> -49.98362594 | D153: 27.92118671 | E153: 0.2421875 | F153: -0.009677430538 | G153: 0.7837480669 | H153: 629.0991974 | I153: 0.2421875 | J153: 629.0991974 | K153: 0.12109375 | L153: 193.8478833 | M153: 0.12109375 | N153: 763.0784799
A154: 125 | B154: 72.42189943 | C154: =[1]!autocovartypical($B$29:$B$540,A154) -> -41.1820435 | D154: 27.83162221 | E154: 0.244140625 | F154: 0.07842455664 | G154: -0.01487236988 | H154: 6.524516833 | I154: 0.244140625 | J154: 6.524516833 | K154: 0.1220703125 | L154: 179.3182643 | M154: 0.1220703125 | N154: 759.1769102
A155: 126 | B155: 81.05374029 | C155: =[1]!autocovartypical($B$29:$B$540,A155) -> -27.18783065 | D155: 27.74305528 | E155: 0.24609375 | F155: 0.1180363257 | G155: 0.3362742648 | H155: 130.0612663 | I155: 0.24609375 | J155: 130.0612663 | K155: 0.123046875 | L155: 426.0609281 | M155: 0.123046875 | N155: 754.9704601
A156: 127 | B156: 96.73959911 | C156: =[1]!autocovartypical($B$29:$B$540,A156) -> -14.58747585 | D156: 27.65546702 | E156: 0.248046875 | F156: 0.02910099153 | G156: 0.1198646576 | H156: 15.57954953 | I156: 0.248046875 | J156: 15.57954953 | K156: 0.1240234375 | L156: 588.0314717 | M156: 0.1240234375 | N156: 751.1597732
A157: 128 | B157: 97.22954173 | C157: =[1]!autocovartypical($B$29:$B$540,A157) -> -12.74676607 | D157: 27.56883905 | E157: =A157/$F$18 -> 0.25 | F157: 0.3234577896 | G157: 0.2077924914 | H157: 151.349925 | I157: 0.25 | J157: 151.349925 | K157: 0.125 | L157: 65.58520521 | M157: 0.125 | N157: 747.0527694
A158: =A157+1 -> 129 | B158: 106.8314767 | C158: =[1]!autocovartypical($B$29:$B$540,A158) -> -4.655583676 | D158: 27.48315344 | E158: 0.251953125 | F158: 0.1555554091 | G158: -0.5403822466 | H158: =(F158^2+G158^2)*$F$18*2 -> 323.7995088 | I158: 0.251953125 | J158: 323.7995088 | K158: 0.1259765625 | L158: 893.5146072 | M158: 0.1259765625 | N158: 743.329396
A159: 130 | B159: 98.41501479 | C159: =[1]!autocovartypical($B$29:$B$540,A159) -> -8.446959904 | D159: =(((A159-1)^(2*$F$17)+(A159+1)^(2*$F$17))/2-(A159)^(2*$F$17))*$F$16 -> 27.39839276 | E159: 0.25390625 | F159: 0.3176639522 | G159: -0.2293710703 | H159: 157.2059898 | I159: 0.25390625 | J159: 157.2059898 | K159: 0.126953125 | L159: 1349.586853 | M159: 0.126953125 | N159: 739.317891
A160: 131 | B160: 103.8512642 | C160: =[1]!autocovartypical($B$29:$B$540,A160) -> -8.310146133 | D160: 27.31454003 | E160: 0.255859375 | F160: -0.589941657 | G160: 0.02181952978 | H160: 356.8714246 | I160: 0.255859375 | J160: 356.8714246 | K160: 0.1279296875 | L160: 218.7271813 | M160: 0.1279296875 | N160: 735.6784583
A161: 132 | B161: 113.5562265 | C161: =[1]!autocovartypical($B$29:$B$540,A161) -> -14.99309057 | D161: 27.2315787 | E161: 0.2578125 | F161: 0.05998306068 | G161: -0.1370150499 | H161: 22.90799765 | I161: 0.2578125 | J161: 22.90799765 | K161: 0.12890625 | L161: 415.3520619 | M161: 0.12890625 | N161: 731.7587236
A162: 133 | B162: 133.353158 | C162: =[1]!autocovartypical($B$29:$B$540,A162) -> -15.59469016 | D162: 27.14949264 | E162: 0.259765625 | F162: -0.07902904427 | G162: -0.1395127228 | H162: 26.32641503 | I162: 0.259765625 | J162: 26.32641503 | K162: 0.1298828125 | L162: 613.399861 | M162: 0.1298828125 | N162: 728.2000419
A163: 134 | B163: 114.2101898 | C163: =[1]!autocovartypical($B$29:$B$540,A163) -> -17.61232434 | D163: 27.06826615 | E163: 0.26171875 | F163: -0.173842297 | G163: -0.3330535567 | H163: 144.5333154 | I163: 0.26171875 | J163: 144.5333154 | K163: 0.130859375 | L163: 384.6893504 | M163: 0.130859375 | N163: 724.3685518
A164: 135 | B164: 116.5490888 | C164: =[1]!autocovartypical($B$29:$B$540,A164) -> -21.67994498 | D164: 26.98788391 | E164: 0.263671875 | F164: 0.1176142743 | G164: -0.2207342797 | H164: 64.05810153 | I164: 0.263671875 | J164: 64.05810154 | K164: 0.1318359375 | L164: 331.4485904 | M164: 0.1318359375 | N164: 720.887602
A165: 136 | B165: 102.1069313 | C165: =[1]!autocovartypical($B$29:$B$540,A165) -> -22.82782444 | D165: 26.90833099 | E165: 0.265625 | F165: -0.1464243489 | G165: -0.1405388227 | H165: 42.17984064 | I165: 0.265625 | J165: 42.17984064 | K165: 0.1328125 | L165: 362.6958024 | M165: 0.1328125 | N165: 717.1410208
A166: 137 | B166: 98.52168485 | C166: =[1]!autocovartypical($B$29:$B$540,A166) -> -26.01222031 | D166: 26.82959282 | E166: 0.267578125 | F166: -0.2653910673 | G166: 0.1695726478 | H166: 101.5677967 | I166: 0.267578125 | J166: 101.5677967 | K166: 0.1337890625 | L166: 369.6012406 | M166: 0.1337890625 | N166: 713.734943
A167: 138 | B167: 100.4042764 | C167: =[1]!autocovartypical($B$29:$B$540,A167) -> -36.12002223 | D167: 26.75165521 | E167: 0.26953125 | F167: 0.0736829268 | G167: -0.6511837155 | H167: 439.7766707 | I167: 0.26953125 | J167: 439.7766707 | K167: 0.134765625 | L167: 182.2971294 | M167: 0.134765625 | N167: 710.0701115
A168: 139 | B168: 95.34565488 | C168: =[1]!autocovartypical($B$29:$B$540,A168) -> -39.26246558 | D168: 26.6745043 | E168: 0.271484375 | F168: 0.007219830165 | G168: -0.6375668845 | H168: 416.3007059 | I168: 0.271484375 | J168: 416.3007059 | K168: 0.1357421875 | L168: 212.2962797 | M168: 0.1357421875 | N168: 706.7361946
A169: 140 | B169: 111.4325793 | C169: =[1]!autocovartypical($B$29:$B$540,A169) -> -36.97060957 | D169: 26.59812658 | E169: 0.2734375 | F169: 0.03611991928 | G169: -0.4648306219 | H169: 222.5890874 | I169: 0.2734375 | J169: 222.5890874 | K169: 0.13671875 | L169: 940.4597447 | M169: 0.13671875 | N169: 703.150119
A170: 141 | B170: 117.7245426 | C170: =[1]!autocovartypical($B$29:$B$540,A170) -> -31.23569236 | D170: 26.52250885 | E170: 0.275390625 | F170: -0.3171743646 | G170: 0.1562767676 | H170: 128.0225338 | I170: 0.275390625 | J170: 128.0225338 | K170: 0.1376953125 | L170: 764.9070321 | M170: 0.1376953125 | N170: 699.885791
A171: 142 | B171: 106.451934 | C171: =[1]!autocovartypical($B$29:$B$540,A171) -> -33.33844923 | D171: 26.44763825 | E171: 0.27734375 | F171: 0.4024964944 | G171: 0.2223213168 | H171: 216.5045206 | I171: 0.27734375 | J171: 216.5045206 | K171: 0.138671875 | L171: 117.0070577 | M171: 0.138671875 | N171: 696.3756318
A172: 143 | B172: 110.2891248 | C172: =[1]!autocovartypical($B$29:$B$540,A172) -> -32.38486925 | D172: 26.37350221 | E172: 0.279296875 | F172: 0.05185169494 | G172: -0.109558903 | H172: 15.04435353 | I172: 0.279296875 | J172: 15.04435353 | K172: 0.1396484375 | L172: 325.5790333 | M172: 0.1396484375 | N172: 693.1784507
A173: 144 | B173: 101.5935638 | C173: =[1]!autocovartypical($B$29:$B$540,A173) -> -39.29346063 | D173: 26.30008846 | E173: 0.28125 | F173: -0.01261544115 | G173: -0.2631020111 | H173: 71.04698122 | I173: 0.28125 | J173: 71.04698122 | K173: 0.140625 | L173: 341.2320158 | M173: 0.140625 | N173: 689.7415131
A174: 145 | B174: 86.43042601 | C174: =[1]!autocovartypical($B$29:$B$540,A174) -> -39.16937877 | D174: 26.22738502 | E174: 0.283203125 | F174: 0.1424048846 | G174: 0.1151339401 | H174: 34.33981473 | I174: 0.283203125 | J174: 34.33981473 | K174: 0.1416015625 | L174: 62.14352535 | M174: 0.1416015625 | N174: 686.6091589
A175: 146 | B175: 80.78464396 | C175: =[1]!autocovartypical($B$29:$B$540,A175) -> -50.79209603 | D175: 26.15538019 | E175: 0.28515625 | F175: 0.503357536 | G175: -0.4233486411 | H175: 442.9751101 | I175: 0.28515625 | J175: 442.9751101 | K175: 0.142578125 | L175: 332.6289398 | M175: 0.142578125 | N175: 683.2428832
A176: 147 | B176: 96.92954677 | C176: =[1]!autocovartypical($B$29:$B$540,A176) -> -57.36380284 | D176: 26.08406253 | E176: 0.287109375 | F176: -0.2966121821 | G176: -0.03030896268 | H176: 91.03095789 | I176: 0.287109375 | J176: 91.03095789 | K176: 0.1435546875 | L176: 301.8728577 | M176: 0.1435546875 | N176: 680.1731507
A177: 148 | B177: 80.59072876 | C177: =[1]!autocovartypical($B$29:$B$540,A177) -> -65.6776562 | D177: 26.01342089 | E177: 0.2890625 | F177: 0.139218583 | G177: -0.3911451045 | H177: 176.513338 | I177: 0.2890625 | J177: 176.513338 | K177: 0.14453125 | L177: 116.3034731 | M177: 0.14453125 | N177: 676.8751038
A178: 149 | B178: 92.65208745 | C178: =[1]!autocovartypical($B$29:$B$540,A178) -> -74.5715429 | D178: 25.94344436 | E178: 0.291015625 | F178: 0.1803566515 | G178: -0.3546754634 | H178: 162.122963 | I178: 0.291015625 | J178: 162.122963 | K178: 0.1455078125 | L178: 24.81943808 | M178: 0.1455078125 | N178: 673.8658948
A179: 150 | B179: 83.03546575 | C179: =[1]!autocovartypical($B$29:$B$540,A179) -> -72.74564589 | D179: 25.87412225 | E179: 0.29296875 | F179: -0.2026168953 | G179: 0.2251728053 | H179: 93.95855209 | I179: 0.29296875 | J179: 93.95855209 | K179: 0.146484375 | L179: 609.9756323 | M179: 0.146484375 | N179: 670.6337632
A180: 151 | B180: 76.72078512 | C180: =[1]!autocovartypical($B$29:$B$540,A180) -> -62.13427887 | D180: 25.80544417 | E180: 0.294921875 | F180: 0.2598072217 | G180: -0.1431439919 | H180: 90.10175474 | I180: 0.294921875 | J180: 90.10175474 | K180: 0.1474609375 | L180: 498.9840088 | M180: 0.1474609375 | N180: 667.6830803
A181: 152 | B181: 79.15122504 | C181: =[1]!autocovartypical($B$29:$B$540,A181) -> -43.99663806 | D181: 25.73739991 | E181: 0.296875 | F181: 0.2058989134 | G181: -0.07115686576 | H181: 48.59664596 | I181: 0.296875 | J181: 48.59664596 | K181: 0.1484375 | L181: 193.3033853 | M181: 0.1484375 | N181: 664.5146622
A182: 153 | B182: 75.54576097 | C182: =[1]!autocovartypical($B$29:$B$540,A182) -> -29.80691805 | D182: 25.66997952 | E182: 0.298828125 | F182: 0.1619662973 | G182: 0.04168731966 | H182: 28.64221601 | I182: 0.298828125 | J182: 28.64221601 | K182: 0.1494140625 | L182: 663.4359443 | M182: 0.1494140625 | N182: 661.6206029
A183: 154 | B183: 62.90084274 | C183: =[1]!autocovartypical($B$29:$B$540,A183) -> -17.37278447 | D183: 25.60317325 | E183: 0.30078125 | F183: -0.003083226027 | G183: 0.2331933963 | H183: 55.69399433 | I183: 0.30078125 | J183: 55.69399433 | K183: 0.150390625 | L183: 478.856296 | M183: 0.150390625 | N183: 658.5138008
A184: 155 | B184: 94.19909329 | C184: =[1]!autocovartypical($B$29:$B$540,A184) -> -9.987575655 | D184: 25.53697157 | E184: 0.302734375 | F184: -0.304708865 | G184: -0.446543971 | H184: 299.2629867 | I184: 0.302734375 | J184: 299.2629867 | K184: 0.1513671875 | L184: 215.2328387 | M184: 0.1513671875 | N184: 655.6745528
A185: 156 | B185: 90.92773369 | C185: =[1]!autocovartypical($B$29:$B$540,A185) -> 0.6782853226 | D185: 25.47136517 | E185: 0.3046875 | F185: -0.02274508855 | G185: 0.1663484607 | H185: 28.86568901 | I185: 0.3046875 | J185: 28.86568901 | K185: 0.15234375 | L185: 24.81068225 | M185: 0.15234375 | N185: 652.6273684
A186: 157 | B186: 71.01486253 | C186: =[1]!autocovartypical($B$29:$B$540,A186) -> 7.917841215 | D186: 25.40634493 | E186: 0.306640625 | F186: -0.05647175731 | G186: 0.329475679 | H186: 114.4251212 | I186: 0.306640625 | J186: 114.4251212 | K186: 0.1533203125 | L186: 35.67228151 | M186: 0.1533203125 | N186: 649.8412021
A187: 158 | B187: 94.8595972 | C187: =[1]!autocovartypical($B$29:$B$540,A187) -> 9.45799237 | D187: 25.34190192 | E187: 0.30859375 | F187: -0.0244557663 | G187: 0.5010450942 | H187: 257.6837334 | I187: 0.30859375 | J187: 257.6837334 | K187: 0.154296875 | L187: 120.4161236 | M187: 0.154296875 | N187: 646.8517308
A188: 159 | B188: 82.89210455 | C188: =[1]!autocovartypical($B$29:$B$540,A188) -> 14.7618347 | D188: 25.27802742 | E188: 0.310546875 | F188: -0.265240064 | G188: 0.05169156487 | H188: 74.77689284 | I188: 0.310546875 | J188: 74.77689284 | K188: 0.1552734375 | L188: 1.068515994 | M188: 0.1552734375 | N188: 644.1169962
A189: 160 | B189: 82.5835125 | C189: =[1]!autocovartypical($B$29:$B$540,A189) -> 6.605516729 | D189: 25.21471289 | E189: 0.3125 | F189: -0.4965213021 | G189: 0.1697930652 | H189: 281.9718026 | I189: 0.3125 | J189: 281.9718026 | K189: 0.15625 | L189: 363.8389767 | M189: 0.15625 | N189: 641.1834204
A190: 161 | B190: 73.09583551 | C190: =[1]!autocovartypical($B$29:$B$540,A190) -> 3.922128427 | D190: 25.15194995 | E190: 0.314453125 | F190: 0.1776812823 | G190: 0.3919067542 | H190: 189.6054191 | I190: 0.314453125 | J190: 189.6054191 | K190: 0.1572265625 | L190: 526.5540565 | M190: 0.1572265625 | N190: 638.4985425
A191: 162 | B191: 90.96668877 | C191: =[1]!autocovartypical($B$29:$B$540,A191) -> -6.18653268 | D191: 25.08973043 | E191: 0.31640625 | F191: -0.3152094543 | G191: 0.4707142887 | H191: 328.6312363 | I191: 0.31640625 | J191: 328.6312363 | K191: 0.158203125 | L191: 50.73741475 | M191: 0.158203125 | N191: 635.6191272
A192: 163 | B192: 78.5064518 | C192: =[1]!autocovartypical($B$29:$B$540,A192) -> -7.471037335 | D192: 25.0280463 | E192: 0.318359375 | F192: -0.1172100914 | G192: 0.008785767272 | H192: 14.14696473 | I192: 0.318359375 | J192: 14.14696473 | K192: 0.1591796875 | L192: 235.3419899 | M192: 0.1591796875 | N192: 632.9826012
A193: 164 | B193: 86.0060761 | C193: =[1]!autocovartypical($B$29:$B$540,A193) -> -10.6894315 | D193: 24.96688972 | E193: 0.3203125 | F193: -0.03188722928 | G193: 0.295904133 | H193: 90.70187657 | I193: 0.3203125 | J193: 90.70187657 | K193: 0.16015625 | L193: 431.0802311 | M193: 0.16015625 | N193: 630.15569
A194: 165 | B194: 90.32235524 | C194: =[1]!autocovartypical($B$29:$B$540,A194) -> -13.45916093 | D194: 24.906253 | E194: 0.322265625 | F194: -0.4140527092 | G194: -0.118992527 | H194: 190.0532403 | I194: 0.322265625 | J194: 190.0532403 | K194: 0.1611328125 | L194: 189.2120579 | M194: 0.1611328125 | N194: 627.5660777
A195: 166 | B195: 105.1023405 | C195: =[1]!autocovartypical($B$29:$B$540,A195) -> -20.0545518 | D195: 24.84612861 | E195: 0.32421875 | F195: -0.2805039795 | G195: 0.08398024616 | H195: 87.7928082 | I195: 0.32421875 | J195: 87.7928082 | K195: 0.162109375 | L195: 135.2594918 | M195: 0.162109375 | N195: 624.7900872
A196: 167 | B196: 101.3068658 | C196: =[1]!autocovartypical($B$29:$B$540,A196) -> -24.28961503 | D196: 24.78650918 | E196: 0.326171875 | F196: -0.01714712491 | G196: 0.3018693315 | H196: 93.61317603 | I196: 0.326171875 | J196: 93.61317603 | K196: 0.1630859375 | L196: 858.6871737 | M196: 0.1630859375 | N196: 622.2460137
A197: 168 | B197: 106.6680741 | C197: =[1]!autocovartypical($B$29:$B$540,A197) -> -26.00989436 | D197: 24.72738747 | E197: 0.328125 | F197: 0.08909888088 | G197: -0.4767456097 | H197: 240.8703866 | I197: 0.328125 | J197: 240.8703866 | K197: 0.1640625 | L197: 480.1361017 | M197: 0.1640625 | N197: 619.5194303
A198: 169 | B198: 104.5725501 | C198: =[1]!autocovartypical($B$29:$B$540,A198) -> -39.27573371 | D198: 24.6687564 | E198: 0.330078125 | F198: 0.008177516944 | G198: -0.1288708871 | H198: 17.07476718 | I198: 0.330078125 | J198: 17.07476718 | K198: 0.1650390625 | L198: 402.9095683 | M198: 0.1650390625 | N198: 617.0195796
A199: 170 | B199: 89.16406321 | C199: =[1]!autocovartypical($B$29:$B$540,A199) -> -54.89401187 | D199: 24.61060905 | E199: 0.33203125 | F199: -0.5145036368 | G199: 0.01965777017 | H199: 271.4628303 | I199: 0.33203125 | J199: 271.4628303 | K199: 0.166015625 | L199: 232.836076 | M199: 0.166015625 | N199: 614.3409557
A200: 171 | B200: 89.70202057 | C200: =[1]!autocovartypical($B$29:$B$540,A200) -> -55.8911903 | D200: 24.55293859 | E200: 0.333984375 | F200: -0.06421513913 | G200: -0.01130240621 | H200: 4.353360363 | I200: 0.333984375 | J200: 4.353360363 | K200: 0.1669921875 | L200: 62.19588566 | M200: 0.1669921875 | N200: 611.8840688
A201: 172 | B201: 88.58193475 | C201: =[1]!autocovartypical($B$29:$B$540,A201) -> -62.09347203 | D201: 24.49573838 | E201: 0.3359375 | F201: -0.1735607079 | G201: 0.01649681873 | H201: 31.1249555 | I201: 0.3359375 | J201: 31.1249555 | K201: 0.16796875 | L201: 45.75891338 | M201: 0.16796875 | N201: 609.2520187
A202: 173 | B202: 92.80482342 | C202: =[1]!autocovartypical($B$29:$B$540,A202) -> -64.48702715 | D202: 24.43900187 | E202: 0.337890625 | F202: -0.4737585325 | G202: -0.1104047381 | H202: 242.3156258 | I202: 0.337890625 | J202: 242.3156258 | K202: 0.1689453125 | L202: 249.095885 | M202: 0.1689453125 | N202: 606.8368894
A203: 174 | B203: 81.36410707 | C203: =[1]!autocovartypical($B$29:$B$540,A203) -> -57.67863355 | D203: 24.38272266 | E203: 0.33984375 | F203: 0.1586642997 | G203: 0.004442790402 | H203: 25.79875674 | I203: 0.33984375 | J203: 25.79875674 | K203: 0.169921875 | L203: 184.3384166 | M203: 0.169921875 | N203: 604.2500869
A204: 175 | B204: 85.86682573 | C204: =[1]!autocovartypical($B$29:$B$540,A204) -> -48.50048357 | D204: 24.32689446 | E204: 0.341796875 | F204: -0.007985245958 | G204: -0.3536685591 | H204: 128.148699 | I204: 0.341796875 | J204: 128.148699 | K204: 0.1708984375 | L204: 1.557098089 | M204: 0.1708984375 | N204: 601.8755594
A205: 176 | B205: 96.80512831 | C205: =[1]!autocovartypical($B$29:$B$540,A205) -> -40.97195403 | D205: 24.27151112 | E205: 0.34375 | F205: -0.08816132612 | G205: -0.2428861326 | H205: 68.36847905 | I205: 0.34375 | J205: 68.36847905 | K205: 0.171875 | L205: 62.89109955 | M205: 0.171875 | N205: 599.3327339
A206: 177 | B206: 100.0702446 | C206: =[1]!autocovartypical($B$29:$B$540,A206) -> -28.76588121 | D206: 24.21656658 | E206: 0.345703125 | F206: 0.2443987803 | G206: -0.001230553117 | H206: 61.16585276 | I206: 0.345703125 | J206: 61.16585276 | K206: 0.1728515625 | L206: 35.40937097 | M206: 0.1728515625 | N206: 596.9977013
A207: 178 | B207: 95.54961663 | C207: =[1]!autocovartypical($B$29:$B$540,A207) -> -20.8265935 | D207: 24.16205494 | E207: 0.34765625 | F207: -0.1613808433 | G207: 0.09112751448 | H207: 35.17235249 | I207: 0.34765625 | J207: 35.1723525 | K207: 0.173828125 | L207: 418.273055 | M207: 0.173828125 | N207: 594.4976342
A208: 179 | B208: 85.2976111 | C208: =[1]!autocovartypical($B$29:$B$540,A208) -> -17.70635562 | D208: 24.10797036 | E208: 0.349609375 | F208: 0.01502895978 | G208: -0.4324596541 | H208: 191.7411554 | I208: 0.349609375 | J208: 191.7411554 | K208: 0.1748046875 | L208: 470.5213775 | M208: 0.1748046875 | N208: 592.2010347
... 333 more rows
